[Event "*** SCC Grand Prix: Titled Tuesday Blitz"]
[Site "Chess.com"]
[Date "2020.07.21"]
[Round "7"]
[White "lider34"]
[Black "vladgoncharov"]
[Result "0-1"]
[WhiteElo "2212"]
[BlackElo "2388"]
[TimeControl "180+1"]
[EndTime "11:19:25 PDT"]
[Termination "vladgoncharov won by checkmate"]

1. e4 {[%clk 0:03:00.9]} 1... e6 {[%clk 0:02:59.3]} 2. d4 {[%clk 0:02:58.6]}
2... d5 {[%clk 0:02:59.6]} 3. exd5 {[%clk 0:02:58.3]} 3... exd5 {[%clk
0:02:59.1]} 4. Nf3 {[%clk 0:02:58.6]} 4... Nc6 {[%clk 0:02:59.6]} 5. Bd3 {[%clk
0:02:56.4]} 5... Bd6 {[%clk 0:02:59.9]} 6. O-O {[%clk 0:02:55.7]} 6... Nge7
{[%clk 0:03:00.5]} 7. h3 {[%clk 0:02:54.8]} 7... h6 {[%clk 0:02:59.6]} 8. c3
{[%clk 0:02:53.6]} 8... O-O {[%clk 0:02:58.4]} 9. Re1 {[%clk 0:02:52.3]} 9...
Bf5 {[%clk 0:02:55.9]} 10. Bxf5 {[%clk 0:02:48.3]} 10... Nxf5 {[%clk 0:02:55.2]}
11. Qd3 {[%clk 0:02:46.3]} 11... Qd7 {[%clk 0:02:19.5]} 12. Nbd2 {[%clk
0:02:41.5]} 12... a6 {[%clk 0:02:14.9]} 13. Nf1 {[%clk 0:02:40]} 13... Rfe8
{[%clk 0:02:14.3]} 14. Bd2 {[%clk 0:02:38]} 14... Nfe7 {[%clk 0:02:04.3]} 15.
Re2 {[%clk 0:02:33.7]} 15... Ng6 {[%clk 0:02:04.1]} 16. Rae1 {[%clk 0:02:30]}
16... Rxe2 {[%clk 0:02:02.4]} 17. Rxe2 {[%clk 0:02:28.1]} 17... Re8 {[%clk
0:02:01.1]} 18. Rxe8+ {[%clk 0:02:24.7]} 18... Qxe8 {[%clk 0:02:01.7]} 19. Qe3
{[%clk 0:02:14.6]} 19... Qxe3 {[%clk 0:01:55.8]} 20. Bxe3 {[%clk 0:02:10.4]}
20... Na5 {[%clk 0:01:50.1]} 21. b3 {[%clk 0:02:05]} 21... b5 {[%clk 0:01:49.8]}
22. g3 {[%clk 0:01:58.2]} 22... b4 {[%clk 0:01:48.9]} 23. Bd2 {[%clk 0:01:53.5]}
23... bxc3 {[%clk 0:01:43.4]} 24. Bxc3 {[%clk 0:01:53]} 24... Nc6 {[%clk
0:01:42.9]} 25. Ne3 {[%clk 0:01:52.5]} 25... Nce7 {[%clk 0:01:42.5]} 26. Kf1
{[%clk 0:01:49.6]} 26... f6 {[%clk 0:01:42.4]} 27. Ke2 {[%clk 0:01:47.9]} 27...
Kf7 {[%clk 0:01:42.3]} 28. Nd2 {[%clk 0:01:45.3]} 28... Ke6 {[%clk 0:01:40.3]}
29. Kd3 {[%clk 0:01:42.1]} 29... Nf8 {[%clk 0:01:34.1]} 30. b4 {[%clk
0:01:36.6]} 30... Kd7 {[%clk 0:01:28.5]} 31. a3 {[%clk 0:01:34.3]} 31... c6
{[%clk 0:01:26.3]} 32. Nb3 {[%clk 0:01:31]} 32... Ne6 {[%clk 0:01:23]} 33. Nd2
{[%clk 0:01:18.9]} 33... Ng5 {[%clk 0:01:18.2]} 34. h4 {[%clk 0:01:17.3]} 34...
Ne6 {[%clk 0:01:18.1]} 35. Nf3 {[%clk 0:01:14.6]} 35... h5 {[%clk 0:01:17]} 36.
Bb2 {[%clk 0:01:10.3]} 36... g5 {[%clk 0:01:15.6]} 37. Bc1 {[%clk 0:01:06.1]}
37... g4 {[%clk 0:01:00]} 38. Ne1 {[%clk 0:01:01.5]} 38... f5 {[%clk 0:00:59.3]}
39. N1g2 {[%clk 0:00:56.6]} 39... f4 {[%clk 0:00:55.3]} 40. Nf1 {[%clk
0:00:42.4]} 40... fxg3 {[%clk 0:00:48.1]} 41. Nxg3 {[%clk 0:00:40.2]} 41... Bxg3
{[%clk 0:00:45.2]} 42. fxg3 {[%clk 0:00:39.8]} 42... Nf5 {[%clk 0:00:45.2]} 43.
Nf4 {[%clk 0:00:34.5]} 43... Nxg3 {[%clk 0:00:42.9]} 44. Ng6 {[%clk 0:00:32.6]}
44... Ne4 {[%clk 0:00:31.4]} 45. Ne5+ {[%clk 0:00:29.6]} 45... Kc7 {[%clk
0:00:30.9]} 46. Ng6 {[%clk 0:00:27.4]} 46... g3 {[%clk 0:00:28]} 47. Be3 {[%clk
0:00:26.2]} 47... Kb6 {[%clk 0:00:24.9]} 48. a4 {[%clk 0:00:24.7]} 48... g2
{[%clk 0:00:24.4]} 49. Ne5 {[%clk 0:00:22.9]} 49... Nf4+ {[%clk 0:00:18.8]} 50.
Kc2 {[%clk 0:00:21.1]} 50... Nh3 {[%clk 0:00:16]} 51. Nf3 {[%clk 0:00:20.3]}
51... a5 {[%clk 0:00:16]} 52. Kb3 {[%clk 0:00:18.1]} 52... axb4 {[%clk
0:00:15.6]} 53. Kxb4 {[%clk 0:00:17.7]} 53... Nf6 {[%clk 0:00:15.1]} 54. Bg1
{[%clk 0:00:14.8]} 54... Ng4 {[%clk 0:00:10.9]} 55. a5+ {[%clk 0:00:12.6]} 55...
Kc7 {[%clk 0:00:10.1]} 56. Ka4 {[%clk 0:00:13.5]} 56... Nf4 {[%clk 0:00:08.4]}
57. Kb4 {[%clk 0:00:12.6]} 57... Ne2 {[%clk 0:00:07.8]} 58. Kc5 {[%clk
0:00:11.1]} 58... Nxg1 {[%clk 0:00:07.6]} 59. Nxg1 {[%clk 0:00:10.6]} 59... Nf6
{[%clk 0:00:05.4]} 60. a6 {[%clk 0:00:11.5]} 60... Nd7+ {[%clk 0:00:04.9]} 61.
Kb4 {[%clk 0:00:11]} 61... Kb6 {[%clk 0:00:05.3]} 62. Nf3 {[%clk 0:00:11.3]}
62... Kxa6 {[%clk 0:00:05.5]} 63. Ng1 {[%clk 0:00:12.2]} 63... Kb6 {[%clk
0:00:05.4]} 64. Nf3 {[%clk 0:00:13.1]} 64... Nf6 {[%clk 0:00:05.3]} 65. Ng1
{[%clk 0:00:14]} 65... Ng4 {[%clk 0:00:05.5]} 66. Nf3 {[%clk 0:00:14.9]} 66...
Ne3 {[%clk 0:00:06]} 67. Ng1 {[%clk 0:00:15.8]} 67... Nf5 {[%clk 0:00:06.6]} 68.
Nf3 {[%clk 0:00:16.7]} 68... Nxh4 {[%clk 0:00:07.1]} 69. Ng1 {[%clk 0:00:17.1]}
69... Ng6 {[%clk 0:00:06.3]} 70. Nh3 {[%clk 0:00:18]} 70... Nf4 {[%clk
0:00:06.1]} 71. Ng1 {[%clk 0:00:18.9]} 71... h4 {[%clk 0:00:06.1]} 72. Nf3
{[%clk 0:00:18.7]} 72... h3 {[%clk 0:00:06.3]} 73. Ng1 {[%clk 0:00:19.6]} 73...
h2 {[%clk 0:00:06.5]} 74. Nf3 {[%clk 0:00:20.5]} 74... h1=Q {[%clk 0:00:06.3]}
75. Nh2 {[%clk 0:00:21.4]} 75... Qxh2 {[%clk 0:00:05.8]} 76. Kc3 {[%clk
0:00:19.5]} 76... g1=Q {[%clk 0:00:05.1]} 77. Kb4 {[%clk 0:00:17.9]} 77... Qe1+
{[%clk 0:00:04]} 78. Ka4 {[%clk 0:00:16.9]} 78... Qa1+ {[%clk 0:00:03.7]} 79.
Kb3 {[%clk 0:00:15.3]} 79... Qhb2# {[%clk 0:00:04.6]} 0-1

[Event "*** SCC Grand Prix: Titled Tuesday Blitz"]
[Site "Chess.com"]
[Date "2020.07.21"]
[Round "7"]
[White "RenarddesSurfaces"]
[Black "chessplayer9919"]
[Result "0-1"]
[WhiteElo "2405"]
[BlackElo "2620"]
[TimeControl "180+1"]
[EndTime "11:19:37 PDT"]
[Termination "chessplayer9919 won by resignation"]

1. e4 {[%clk 0:03:00.9]} 1... c6 {[%clk 0:02:57.9]} 2. c4 {[%clk 0:03:00.6]}
2... d5 {[%clk 0:02:58.4]} 3. exd5 {[%clk 0:03:01.5]} 3... cxd5 {[%clk 0:02:59]}
4. cxd5 {[%clk 0:03:02.3]} 4... Nf6 {[%clk 0:02:59.2]} 5. Qa4+ {[%clk
0:03:02.4]} 5... Nbd7 {[%clk 0:02:53.2]} 6. Nc3 {[%clk 0:03:02]} 6... g6 {[%clk
0:02:53]} 7. Nf3 {[%clk 0:03:02.4]} 7... Bg7 {[%clk 0:02:52]} 8. Bc4 {[%clk
0:03:02.8]} 8... O-O {[%clk 0:02:51.6]} 9. d3 {[%clk 0:03:03.4]} 9... Nc5 {[%clk
0:02:50.4]} 10. Qd1 {[%clk 0:02:56.1]} 10... a6 {[%clk 0:02:48.8]} 11. a4 {[%clk
0:02:55.1]} 11... Bg4 {[%clk 0:02:45.8]} 12. h3 {[%clk 0:02:52.5]} 12... Bxf3
{[%clk 0:02:44.9]} 13. Qxf3 {[%clk 0:02:53.4]} 13... Rc8 {[%clk 0:02:45.1]} 14.
O-O {[%clk 0:02:42.3]} 14... Nfd7 {[%clk 0:02:43.9]} 15. Bf4 {[%clk 0:02:30.1]}
15... Qb6 {[%clk 0:02:38.1]} 16. Qe2 {[%clk 0:02:13.6]} 16... Nb3 {[%clk
0:02:21.3]} 17. Rab1 {[%clk 0:01:56.2]} 17... Rfe8 {[%clk 0:01:52.7]} 18. Rfe1
{[%clk 0:01:47.9]} 18... Nd4 {[%clk 0:01:44]} 19. Qd2 {[%clk 0:01:43.1]} 19...
e5 {[%clk 0:01:26.7]} 20. dxe6 {[%clk 0:01:39]} 20... Nxe6 {[%clk 0:01:26.1]}
21. Bh6 {[%clk 0:01:23.3]} 21... Ne5 {[%clk 0:01:09.2]} 22. Bxg7 {[%clk
0:01:12.9]} 22... Nxg7 {[%clk 0:00:53]} 23. b3 {[%clk 0:01:03.8]} 23... Nf5
{[%clk 0:00:35.3]} 24. Nd5 {[%clk 0:00:57.2]} 24... Qd6 {[%clk 0:00:34.7]} 25.
Qg5 {[%clk 0:00:40.7]} 25... Kg7 {[%clk 0:00:25.5]} 26. Re4 {[%clk 0:00:15.2]}
26... b5 {[%clk 0:00:21.8]} 27. axb5 {[%clk 0:00:13.3]} 27... axb5 {[%clk
0:00:22.7]} 28. Rbe1 {[%clk 0:00:12.5]} 28... bxc4 {[%clk 0:00:22.3]} 29. dxc4
{[%clk 0:00:12]} 29... h6 {[%clk 0:00:15.8]} 30. Qf4 {[%clk 0:00:10.8]} 30... f6
{[%clk 0:00:13.1]} 31. g4 {[%clk 0:00:09.8]} 31... Nh4 {[%clk 0:00:09.4]} 32.
R1e3 {[%clk 0:00:09.9]} 32... Nef3+ {[%clk 0:00:06]} 33. Rxf3 {[%clk 0:00:07.7]}
33... Nxf3+ {[%clk 0:00:05]} 34. Qxf3 {[%clk 0:00:08.6]} 34... Rxe4 {[%clk
0:00:03.5]} 35. Qxe4 {[%clk 0:00:09.5]} 35... Ra8 {[%clk 0:00:03.4]} 36. b4
{[%clk 0:00:06.3]} 36... Ra1+ {[%clk 0:00:03.1]} 37. Kg2 {[%clk 0:00:05.8]}
37... Ra7 {[%clk 0:00:04]} 38. c5 {[%clk 0:00:04.9]} 38... Qe5 {[%clk
0:00:02.5]} 39. Qxe5 {[%clk 0:00:04.9]} 39... fxe5 {[%clk 0:00:03.4]} 40. b5
{[%clk 0:00:05.1]} 40... Kf7 {[%clk 0:00:03.2]} 41. b6 {[%clk 0:00:05.4]} 41...
Ra5 {[%clk 0:00:03.1]} 42. c6 {[%clk 0:00:03.4]} 42... Rxd5 {[%clk 0:00:02.5]}
43. b7 {[%clk 0:00:03.7]} 43... Rb5 {[%clk 0:00:02.3]} 44. c7 {[%clk 0:00:04]}
44... Rxb7 {[%clk 0:00:02.2]} 45. c8=Q {[%clk 0:00:04.2]} 45... Re7 {[%clk
0:00:03.1]} 46. Qc4+ {[%clk 0:00:03.8]} 46... Kf6 {[%clk 0:00:02.5]} 47. h4
{[%clk 0:00:04.7]} 47... h5 {[%clk 0:00:01.8]} 48. g5+ {[%clk 0:00:04.4]} 48...
Kg7 {[%clk 0:00:01.9]} 49. Qc6 {[%clk 0:00:04.4]} 49... Rf7 {[%clk 0:00:01.7]}
50. Qe6 {[%clk 0:00:03.7]} 50... Rf5 {[%clk 0:00:02.6]} 51. Qe7+ {[%clk
0:00:03.3]} 51... Kg8 {[%clk 0:00:02.7]} 52. Kg3 {[%clk 0:00:03.3]} 52... Kh8
{[%clk 0:00:02.9]} 53. Kg2 {[%clk 0:00:02.9]} 53... Kg8 {[%clk 0:00:02.8]} 54.
Kf1 {[%clk 0:00:03.2]} 54... Kh8 {[%clk 0:00:02.7]} 55. Ke2 {[%clk 0:00:03.4]}
55... Kg8 {[%clk 0:00:02.7]} 56. Ke3 {[%clk 0:00:03.7]} 56... Kh8 {[%clk
0:00:03.2]} 57. Ke4 {[%clk 0:00:04]} 57... Kg8 {[%clk 0:00:03.3]} 58. Qxe5
{[%clk 0:00:04.1]} 58... Rxf2 {[%clk 0:00:03.1]} 59. Qe8+ {[%clk 0:00:03]} 59...
Kg7 {[%clk 0:00:02.9]} 60. Qe7+ {[%clk 0:00:03]} 60... Rf7 {[%clk 0:00:02.9]}
61. Qe5+ {[%clk 0:00:02.3]} 61... Kg8 {[%clk 0:00:03]} 62. Kd5 {[%clk 0:00:03]}
62... Rf8 {[%clk 0:00:02.8]} 63. Qe6+ {[%clk 0:00:02.1]} 63... Kg7 {[%clk
0:00:02.8]} 64. Ke5 {[%clk 0:00:02.6]} 64... Rf7 {[%clk 0:00:02.8]} 65. Qd6
{[%clk 0:00:02.3]} 65... Rf8 {[%clk 0:00:02.2]} 66. Qd7+ {[%clk 0:00:01.9]}
66... Rf7 {[%clk 0:00:01.9]} 67. Qh3 {[%clk 0:00:02.8]} 67... Rf8 {[%clk
0:00:01.6]} 68. Qc3 {[%clk 0:00:03.7]} 68... Kg8 {[%clk 0:00:01.6]} 69. Ke6
{[%clk 0:00:03.9]} 69... Rf7 {[%clk 0:00:01.3]} 70. Qc8+ {[%clk 0:00:03.7]}
70... Rf8 {[%clk 0:00:02.2]} 71. Qe8 {[%clk 0:00:03.7]} 71... Rxe8+ {[%clk
0:00:02.1]} 72. Kf6 {[%clk 0:00:03.3]} 72... Rb8 {[%clk 0:00:03]} 73. Kxg6
{[%clk 0:00:03.1]} 73... Rb6+ {[%clk 0:00:03.9]} 74. Kxh5 {[%clk 0:00:03.7]}
74... Kg7 {[%clk 0:00:03.6]} 75. Kg4 {[%clk 0:00:03.8]} 75... Rb4+ {[%clk
0:00:02.9]} 76. Kh5 {[%clk 0:00:03.9]} 76... Ra4 {[%clk 0:00:02.7]} 77. g6
{[%clk 0:00:03.9]} 77... Ra5+ {[%clk 0:00:03.2]} 0-1

[Event "*** SCC Grand Prix: Titled Tuesday Blitz"]
[Site "Chess.com"]
[Date "2020.07.21"]
[Round "7"]
[White "ItsCheckM8Mate"]
[Black "ljuks68"]
[Result "0-1"]
[WhiteElo "2300"]
[BlackElo "2445"]
[TimeControl "180+1"]
[EndTime "11:19:42 PDT"]
[Termination "ljuks68 won on time"]

1. e4 {[%clk 0:03:00.9]} 1... e6 {[%clk 0:02:59.5]} 2. d4 {[%clk 0:03:00.1]}
2... d5 {[%clk 0:02:59.5]} 3. Nc3 {[%clk 0:02:59.7]} 3... Bb4 {[%clk 0:02:58.8]}
4. exd5 {[%clk 0:02:59.1]} 4... exd5 {[%clk 0:02:58.6]} 5. Bd3 {[%clk
0:02:58.8]} 5... Nf6 {[%clk 0:02:58.3]} 6. Bg5 {[%clk 0:02:56.2]} 6... O-O
{[%clk 0:02:56.9]} 7. Ne2 {[%clk 0:02:55.2]} 7... Bg4 {[%clk 0:02:55.6]} 8. O-O
{[%clk 0:02:54.1]} 8... c6 {[%clk 0:02:42.9]} 9. Qd2 {[%clk 0:02:47.3]} 9...
Nbd7 {[%clk 0:02:39.2]} 10. f3 {[%clk 0:02:35.8]} 10... Bh5 {[%clk 0:02:38]} 11.
Nf4 {[%clk 0:02:33]} 11... Bg6 {[%clk 0:02:37.9]} 12. Nxg6 {[%clk 0:02:32.7]}
12... hxg6 {[%clk 0:02:37.4]} 13. Qf4 {[%clk 0:02:29.1]} 13... Bxc3 {[%clk
0:01:53.1]} 14. bxc3 {[%clk 0:02:28.3]} 14... Qa5 {[%clk 0:01:52.8]} 15. c4
{[%clk 0:02:20.2]} 15... dxc4 {[%clk 0:01:52]} 16. Bxc4 {[%clk 0:02:18.9]} 16...
Nd5 {[%clk 0:01:45]} 17. Qg3 {[%clk 0:02:17.5]} 17... Qc3 {[%clk 0:01:22.1]} 18.
Bb3 {[%clk 0:02:05]} 18... Qxd4+ {[%clk 0:01:19.4]} 19. Kh1 {[%clk 0:02:04.6]}
19... N7b6 {[%clk 0:01:10.6]} 20. Rad1 {[%clk 0:02:01.2]} 20... Qc5 {[%clk
0:01:07]} 21. Qh4 {[%clk 0:01:49.1]} 21... Rfe8 {[%clk 0:00:55.8]} 22. Rfe1
{[%clk 0:01:36.6]} 22... a5 {[%clk 0:00:53.6]} 23. a4 {[%clk 0:01:31.4]} 23...
Nc3 {[%clk 0:00:35.8]} 24. Rxe8+ {[%clk 0:01:12.3]} 24... Rxe8 {[%clk
0:00:33.1]} 25. Rd8 {[%clk 0:00:58.8]} 25... Rxd8 {[%clk 0:00:17.4]} 26. Bxd8
{[%clk 0:00:59.7]} 26... Nbd5 {[%clk 0:00:17.9]} 27. Qe1 {[%clk 0:00:48.3]}
27... Qd4 {[%clk 0:00:13.8]} 28. Bxa5 {[%clk 0:00:38]} 28... b6 {[%clk 0:00:13]}
29. Bxc3 {[%clk 0:00:36]} 29... Nxc3 {[%clk 0:00:13.1]} 30. h3 {[%clk
0:00:33.8]} 30... Qd1 {[%clk 0:00:13.1]} 31. Qxd1 {[%clk 0:00:33.6]} 31... Nxd1
{[%clk 0:00:13.1]} 32. Kg1 {[%clk 0:00:32.1]} 32... Kf8 {[%clk 0:00:12.8]} 33.
Kf1 {[%clk 0:00:32]} 33... Nc3 {[%clk 0:00:12.4]} 34. Ke1 {[%clk 0:00:30.7]}
34... f6 {[%clk 0:00:12.1]} 35. Kd2 {[%clk 0:00:30.7]} 35... Nb1+ {[%clk
0:00:12.1]} 36. Ke3 {[%clk 0:00:25.2]} 36... Ke7 {[%clk 0:00:11.3]} 37. h4
{[%clk 0:00:25.5]} 37... g5 {[%clk 0:00:11.1]} 38. hxg5 {[%clk 0:00:25.3]} 38...
fxg5 {[%clk 0:00:11.2]} 39. Ke4 {[%clk 0:00:23.7]} 39... Kf6 {[%clk 0:00:09.2]}
40. Ke3 {[%clk 0:00:19.7]} 40... Ke5 {[%clk 0:00:08.1]} 41. g3 {[%clk 0:00:16]}
41... Nc3 {[%clk 0:00:06.7]} 42. Bf7 {[%clk 0:00:15.8]} 42... Nxa4 {[%clk
0:00:05.4]} 43. Be8 {[%clk 0:00:15.5]} 43... Kd6 {[%clk 0:00:04.4]} 44. Ke4
{[%clk 0:00:14.3]} 44... Nc3+ {[%clk 0:00:03.3]} 45. Kf5 {[%clk 0:00:14.6]}
45... Ne2 {[%clk 0:00:03]} 46. g4 {[%clk 0:00:14.2]} 46... Nd4+ {[%clk
0:00:03.1]} 47. Kxg5 {[%clk 0:00:14.4]} 47... Nxc2 {[%clk 0:00:03.6]} 48. f4
{[%clk 0:00:13.8]} 48... b5 {[%clk 0:00:03.6]} 49. f5 {[%clk 0:00:14.1]} 49...
b4 {[%clk 0:00:03.8]} 50. f6 {[%clk 0:00:14.4]} 50... gxf6+ {[%clk 0:00:04.2]}
51. Kxf6 {[%clk 0:00:15.3]} 51... b3 {[%clk 0:00:04.5]} 52. Bg6 {[%clk
0:00:15.6]} 52... c5 {[%clk 0:00:04.5]} 53. g5 {[%clk 0:00:13.8]} 53... c4
{[%clk 0:00:03.7]} 54. Bf5 {[%clk 0:00:13.8]} 54... Nd4 {[%clk 0:00:02.9]} 55.
g6 {[%clk 0:00:13.5]} 55... Nxf5 {[%clk 0:00:02.6]} 56. g7 {[%clk 0:00:11.8]}
56... b2 {[%clk 0:00:03.5]} 57. g8=Q {[%clk 0:00:11.3]} 57... b1=Q {[%clk
0:00:04.1]} 58. Qd8+ {[%clk 0:00:10.6]} 58... Kc5 {[%clk 0:00:04.4]} 59. Qc7+
{[%clk 0:00:10.2]} 59... Kd5 {[%clk 0:00:04.2]} 60. Qf7+ {[%clk 0:00:08.8]}
60... Kd4 {[%clk 0:00:03.9]} 61. Qd7+ {[%clk 0:00:08.2]} 61... Kc3 {[%clk
0:00:04]} 62. Qa4 {[%clk 0:00:04]} 62... Nd4 {[%clk 0:00:03.6]} 63. Qa3+ {[%clk
0:00:03.4]} 63... Qb3 {[%clk 0:00:03.1]} 64. Qa1+ {[%clk 0:00:03.1]} 64... Kd3
{[%clk 0:00:02.9]} 65. Qf1+ {[%clk 0:00:02.9]} 65... Kc2 {[%clk 0:00:02.6]} 66.
Qf2+ {[%clk 0:00:02.2]} 66... Kb1 {[%clk 0:00:02.4]} 67. Qxd4 {[%clk 0:00:02.3]}
67... c3 {[%clk 0:00:02.4]} 68. Qd3+ {[%clk 0:00:02.1]} 68... c2 {[%clk
0:00:02.1]} 69. Qf5 {[%clk 0:00:01.1]} 69... Ka1 {[%clk 0:00:01.7]} 0-1

[Event "*** SCC Grand Prix: Titled Tuesday Blitz"]
[Site "Chess.com"]
[Date "2020.07.21"]
[Round "7"]
[White "Zenzo"]
[Black "ENajer77"]
[Result "1/2-1/2"]
[WhiteElo "2556"]
[BlackElo "2688"]
[TimeControl "180+1"]
[EndTime "11:19:46 PDT"]
[Termination "Game drawn by repetition"]

1. e4 {[%clk 0:03:00.9]} 1... c6 {[%clk 0:02:59.4]} 2. d4 {[%clk 0:03:00.6]}
2... d5 {[%clk 0:02:58.8]} 3. Nc3 {[%clk 0:03:01.1]} 3... dxe4 {[%clk
0:02:58.2]} 4. Nxe4 {[%clk 0:03:02]} 4... Bf5 {[%clk 0:02:58.4]} 5. Ng3 {[%clk
0:03:02.5]} 5... Bg6 {[%clk 0:02:59]} 6. Bc4 {[%clk 0:03:03]} 6... Nf6 {[%clk
0:02:53.3]} 7. N1e2 {[%clk 0:03:03]} 7... e6 {[%clk 0:02:53.4]} 8. h4 {[%clk
0:03:01.8]} 8... h6 {[%clk 0:02:48.1]} 9. Nf4 {[%clk 0:03:00.7]} 9... Bh7 {[%clk
0:02:48.1]} 10. O-O {[%clk 0:02:56.9]} 10... Bd6 {[%clk 0:02:43.2]} 11. Bb3
{[%clk 0:02:53.7]} 11... O-O {[%clk 0:02:37.5]} 12. Re1 {[%clk 0:02:51.8]} 12...
Nd5 {[%clk 0:02:06.5]} 13. Qg4 {[%clk 0:02:36.7]} 13... Nxf4 {[%clk 0:01:47.8]}
14. Bxf4 {[%clk 0:02:37.6]} 14... Bxf4 {[%clk 0:01:44.7]} 15. Qxf4 {[%clk
0:02:38.5]} 15... Nd7 {[%clk 0:01:44.5]} 16. Nh5 {[%clk 0:02:29.7]} 16... Bg6
{[%clk 0:01:41.7]} 17. Ng3 {[%clk 0:02:26.8]} 17... a5 {[%clk 0:01:31.6]} 18. c3
{[%clk 0:02:13.1]} 18... a4 {[%clk 0:01:30.7]} 19. Bd1 {[%clk 0:02:07]} 19... a3
{[%clk 0:01:30.8]} 20. b3 {[%clk 0:02:03.9]} 20... Nf6 {[%clk 0:00:59.9]} 21.
Rc1 {[%clk 0:02:02.6]} 21... Nd5 {[%clk 0:00:53.2]} 22. Qg4 {[%clk 0:02:00.6]}
22... Qf6 {[%clk 0:00:47.4]} 23. h5 {[%clk 0:01:45.5]} 23... Bh7 {[%clk
0:00:46.8]} 24. Bc2 {[%clk 0:01:43.3]} 24... Bxc2 {[%clk 0:00:41.8]} 25. Rxc2
{[%clk 0:01:44.2]} 25... Qf4 {[%clk 0:00:31.6]} 26. Qxf4 {[%clk 0:01:29.3]}
26... Nxf4 {[%clk 0:00:31.4]} 27. Re4 {[%clk 0:01:29.5]} 27... Nd5 {[%clk
0:00:31.1]} 28. c4 {[%clk 0:01:26]} 28... Nb4 {[%clk 0:00:30.5]} 29. Rd2 {[%clk
0:01:25.8]} 29... Rfd8 {[%clk 0:00:30.4]} 30. Ne2 {[%clk 0:01:22.8]} 30... Rd7
{[%clk 0:00:26.9]} 31. Nc3 {[%clk 0:01:21.2]} 31... Rad8 {[%clk 0:00:20.5]} 32.
Nb1 {[%clk 0:01:21.3]} 32... c5 {[%clk 0:00:15.1]} 33. Nxa3 {[%clk 0:01:18.7]}
33... Rxd4 {[%clk 0:00:13.8]} 34. Rexd4 {[%clk 0:01:10.7]} 34... Rxd4 {[%clk
0:00:13.8]} 35. Rxd4 {[%clk 0:01:00.5]} 35... cxd4 {[%clk 0:00:14.4]} 36. Nb5
{[%clk 0:01:01.1]} 36... d3 {[%clk 0:00:13]} 37. Nc3 {[%clk 0:01:01.5]} 37... d2
{[%clk 0:00:12.3]} 38. Kf1 {[%clk 0:01:02]} 38... Nxa2 {[%clk 0:00:12.3]} 39.
Nd1 {[%clk 0:01:02.5]} 39... Nc1 {[%clk 0:00:12.1]} 40. b4 {[%clk 0:01:01.5]}
40... Kf8 {[%clk 0:00:12.3]} 41. f3 {[%clk 0:01:00.4]} 41... Ke7 {[%clk
0:00:10.9]} 42. Kf2 {[%clk 0:00:58.3]} 42... Nd3+ {[%clk 0:00:10.9]} 43. Ke3
{[%clk 0:00:59]} 43... Nxb4 {[%clk 0:00:11.3]} 44. Kxd2 {[%clk 0:00:59.9]} 44...
Nc6 {[%clk 0:00:08.8]} 45. Kc3 {[%clk 0:00:59.1]} 45... Kd6 {[%clk 0:00:07.3]}
46. Nf2 {[%clk 0:00:57.5]} 46... f5 {[%clk 0:00:06.5]} 47. Nd3 {[%clk
0:00:54.6]} 47... e5 {[%clk 0:00:06.8]} 48. g4 {[%clk 0:00:53.9]} 48... e4
{[%clk 0:00:06]} 49. fxe4 {[%clk 0:00:49.6]} 49... fxg4 {[%clk 0:00:06.2]} 50.
Kd2 {[%clk 0:00:40.5]} 50... Ne5 {[%clk 0:00:06]} 51. Nb2 {[%clk 0:00:37.2]}
51... g6 {[%clk 0:00:04]} 52. hxg6 {[%clk 0:00:36.3]} 52... Nxg6 {[%clk
0:00:04.6]} 53. Ke3 {[%clk 0:00:36.7]} 53... h5 {[%clk 0:00:04.4]} 54. Nd3
{[%clk 0:00:37]} 54... Ne5 {[%clk 0:00:04]} 55. c5+ {[%clk 0:00:33.4]} 55... Ke6
{[%clk 0:00:04.2]} 56. Nf4+ {[%clk 0:00:33.9]} 56... Kf6 {[%clk 0:00:03.4]} 57.
Nxh5+ {[%clk 0:00:34]} 57... Kg5 {[%clk 0:00:04]} 58. Ng7 {[%clk 0:00:28.7]}
58... g3 {[%clk 0:00:03.1]} 59. Ne6+ {[%clk 0:00:27.7]} 59... Kg4 {[%clk
0:00:03.3]} 60. Nd4 {[%clk 0:00:18]} 60... Kh3 {[%clk 0:00:02.8]} 61. Ne2 {[%clk
0:00:17.1]} 61... Kg4 {[%clk 0:00:02]} 62. Kd4 {[%clk 0:00:16.6]} 62... Nc6+
{[%clk 0:00:01.6]} 63. Kd5 {[%clk 0:00:16.6]} 63... g2 {[%clk 0:00:02]} 64. e5
{[%clk 0:00:16.5]} 64... Kf3 {[%clk 0:00:02.3]} 65. Ng1+ {[%clk 0:00:16.5]}
65... Kf2 {[%clk 0:00:02.6]} 66. Nh3+ {[%clk 0:00:16.9]} 66... Kg3 {[%clk
0:00:03.1]} 67. Ng1 {[%clk 0:00:17.4]} 67... Kf4 {[%clk 0:00:03.4]} 68. e6
{[%clk 0:00:17.2]} 68... Kf5 {[%clk 0:00:03.9]} 69. Kd6 {[%clk 0:00:16.8]} 69...
Kf6 {[%clk 0:00:04.5]} 70. Nh3 {[%clk 0:00:16.7]} 70... Nd4 {[%clk 0:00:04.4]}
71. e7 {[%clk 0:00:15.9]} 71... Nf5+ {[%clk 0:00:04.9]} 72. Kc7 {[%clk
0:00:16.1]} 72... Nxe7 {[%clk 0:00:03.9]} 73. Kxb7 {[%clk 0:00:16.3]} 73... Ke6
{[%clk 0:00:04.3]} 74. c6 {[%clk 0:00:16.2]} 74... Kd6 {[%clk 0:00:04.9]} 75. c7
{[%clk 0:00:16.7]} 75... Kd7 {[%clk 0:00:05.5]} 76. Ng1 {[%clk 0:00:16.8]} 76...
Nc8 {[%clk 0:00:05.8]} 77. Nh3 {[%clk 0:00:16.9]} 77... Nd6+ {[%clk 0:00:05.8]}
78. Kb8 {[%clk 0:00:17.2]} 78... Nc8 {[%clk 0:00:05.6]} 79. Ng1 {[%clk
0:00:17.6]} 79... Ne7 {[%clk 0:00:04.9]} 80. Nh3 {[%clk 0:00:16.8]} 80... Nc6+
{[%clk 0:00:05]} 81. Kb7 {[%clk 0:00:17.3]} 81... Na5+ {[%clk 0:00:04.9]} 82.
Kb8 {[%clk 0:00:17.1]} 82... Nc6+ {[%clk 0:00:04.4]} 83. Kb7 {[%clk 0:00:17.4]}
83... Ne7 {[%clk 0:00:04.1]} 84. Ng1 {[%clk 0:00:14.9]} 84... Kd6 {[%clk
0:00:03.3]} 85. c8=Q {[%clk 0:00:13.7]} 85... Nxc8 {[%clk 0:00:03.8]} 86. Kxc8
{[%clk 0:00:14.6]} 86... Ke5 {[%clk 0:00:03.9]} 87. Kd7 {[%clk 0:00:15.5]} 87...
Kf4 {[%clk 0:00:04.5]} 88. Ke6 {[%clk 0:00:16.4]} 88... Kg3 {[%clk 0:00:05]} 89.
Kf5 {[%clk 0:00:16.6]} 89... Kf2 {[%clk 0:00:05.6]} 90. Nh3+ {[%clk 0:00:16.7]}
90... Kg3 {[%clk 0:00:06.2]} 91. Ng1 {[%clk 0:00:16.8]} 91... Kf2 {[%clk
0:00:06.8]} 92. Nh3+ {[%clk 0:00:16.9]} 92... Kg3 {[%clk 0:00:07.4]} 93. Ng1
{[%clk 0:00:16.8]} 1/2-1/2